[Event "Live Chess"]
[Site "Chess.com"]
[Date "2024.06.02"]
[Round "-"]
[White "Tatarinov_Maxim"]
[Black "CheckThis4"]
[Result "0-1"]
[WhiteElo "2270"]
[BlackElo "2695"]
[TimeControl "300"]
[EndTime "1:22:28 PDT"]
[Termination "CheckThis4 won by resignation"]

1. Nf3 {[%clk 0:04:57.6]} 1... d5 {[%clk 0:04:56.7]} 2. g3 {[%clk 0:04:56.9]}
2... g6 {[%clk 0:04:54.9]} 3. Bg2 {[%clk 0:04:55.8]} 3... Bg7 {[%clk 0:04:53.9]}
4. O-O {[%clk 0:04:54.8]} 4... e5 {[%clk 0:04:52.7]} 5. d3 {[%clk 0:04:49.4]}
5... Ne7 {[%clk 0:04:49.2]} 6. c4 {[%clk 0:04:47.9]} 6... d4 {[%clk 0:04:47.2]}
7. Na3 {[%clk 0:04:43.3]} 7... Nbc6 {[%clk 0:04:45.5]} 8. Nc2 {[%clk 0:04:42.7]}
8... Bf5 {[%clk 0:04:41.1]} 9. b4 {[%clk 0:04:40]} 9... Qd7 {[%clk 0:04:34.7]}
10. b5 {[%clk 0:04:38.7]} 10... Nd8 {[%clk 0:04:33.3]} 11. a4 {[%clk 0:04:31.9]}
11... Bh3 {[%clk 0:04:25.3]} 12. Ba3 {[%clk 0:04:29.7]} 12... Bxg2 {[%clk
0:04:23.2]} 13. Kxg2 {[%clk 0:04:29.6]} 13... Ne6 {[%clk 0:04:17.8]} 14. e3
{[%clk 0:04:24]} 14... O-O {[%clk 0:04:11.8]} 15. exd4 {[%clk 0:04:22]} 15...
exd4 {[%clk 0:04:10.6]} 16. Re1 {[%clk 0:04:14.7]} 16... Rfe8 {[%clk 0:04:08.1]}
17. Rb1 {[%clk 0:04:05.3]} 17... Rad8 {[%clk 0:04:04.8]} 18. Nb4 {[%clk
0:04:01.2]} 18... c6 {[%clk 0:03:59.3]} 19. Qc2 {[%clk 0:03:58.8]} 19... Nf5
{[%clk 0:03:48.2]} 20. bxc6 {[%clk 0:03:46.6]} 20... bxc6 {[%clk 0:03:46.7]} 21.
Ne5 {[%clk 0:03:45]} 21... Bxe5 {[%clk 0:03:27.1]} 22. Rxe5 {[%clk 0:03:44.9]}
22... Ng5 {[%clk 0:03:21.8]} 23. Rbe1 {[%clk 0:03:38.8]} 23... Ne3+ {[%clk
0:02:51.3]} 24. R1xe3 {[%clk 0:03:32.7]} 24... Qh3+ {[%clk 0:02:39.2]} 25. Kg1
{[%clk 0:03:26.8]} 25... dxe3 {[%clk 0:02:38]} 26. Rxg5 {[%clk 0:03:25]} 26...
e2 {[%clk 0:02:36.1]} 0-1

[Event "Live Chess"]
[Site "Chess.com"]
[Date "2024.06.02"]
[Round "-"]
[White "Leo_the_Rex"]
[Black "lateforthesky"]
[Result "1-0"]
[WhiteElo "2067"]
[BlackElo "2108"]
[TimeControl "300"]
[EndTime "1:22:32 PDT"]
[Termination "Leo_the_Rex won by checkmate"]

1. d4 {[%clk 0:04:57.9]} 1... Nf6 {[%clk 0:04:57.9]} 2. c4 {[%clk 0:04:56.7]}
2... g6 {[%clk 0:04:56.9]} 3. h4 {[%clk 0:04:55.2]} 3... Bg7 {[%clk 0:04:50.9]}
4. Nc3 {[%clk 0:04:52.4]} 4... d6 {[%clk 0:04:49.9]} 5. e4 {[%clk 0:04:52]} 5...
Nbd7 {[%clk 0:04:38.4]} 6. Be2 {[%clk 0:04:51]} 6... h5 {[%clk 0:04:32.1]} 7.
Bg5 {[%clk 0:04:49]} 7... c5 {[%clk 0:04:30.3]} 8. d5 {[%clk 0:04:47.8]} 8... a6
{[%clk 0:04:25.7]} 9. a4 {[%clk 0:04:44.2]} 9... Qa5 {[%clk 0:04:23.7]} 10. Qd2
{[%clk 0:04:39.4]} 10... Ne5 {[%clk 0:04:16.9]} 11. f3 {[%clk 0:04:35.4]} 11...
Nfd7 {[%clk 0:04:04.6]} 12. Nh3 {[%clk 0:04:28.6]} 12... f6 {[%clk 0:04:02]} 13.
Be3 {[%clk 0:04:25.5]} 13... Qb4 {[%clk 0:03:49.4]} 14. b3 {[%clk 0:03:47.1]}
14... Kf7 {[%clk 0:03:13.6]} 15. Nf4 {[%clk 0:03:32.9]} 15... Nf8 {[%clk
0:03:09.9]} 16. Nd3 {[%clk 0:03:24.7]} 16... Nxd3+ {[%clk 0:03:07.3]} 17. Qxd3
{[%clk 0:03:18.5]} 17... f5 {[%clk 0:02:51.7]} 18. Kd2 {[%clk 0:02:54.2]} 18...
Qxb3 {[%clk 0:02:41.3]} 19. Rhc1 {[%clk 0:02:33.3]} 19... Qb6 {[%clk 0:02:34.2]}
20. Rab1 {[%clk 0:02:19.6]} 20... Qc7 {[%clk 0:02:33.3]} 21. exf5 {[%clk
0:02:11.8]} 21... Bxf5 {[%clk 0:02:31]} 22. Ne4 {[%clk 0:02:10.7]} 22... Nh7
{[%clk 0:02:23.3]} 23. g4 {[%clk 0:02:02.9]} 23... Bxe4 {[%clk 0:02:04.6]} 24.
fxe4 {[%clk 0:01:52.1]} 24... hxg4 {[%clk 0:01:57.8]} 25. Bxg4 {[%clk
0:01:44.4]} 25... Nf6 {[%clk 0:01:56.2]} 26. Be6+ {[%clk 0:01:43.3]} 26... Ke8
{[%clk 0:01:35.9]} 27. e5 {[%clk 0:01:39]} 27... Qa5+ {[%clk 0:01:21.3]} 28. Ke2
{[%clk 0:01:16.9]} 28... Nh5 {[%clk 0:01:10.9]} 29. Qxg6+ {[%clk 0:01:11.9]}
29... Kd8 {[%clk 0:01:10]} 30. Rxb7 {[%clk 0:00:59.9]} 30... Qxa4 {[%clk
0:00:59.6]} 31. Rd7+ {[%clk 0:00:51.1]} 31... Qxd7 {[%clk 0:00:57.2]} 32. Bxd7
{[%clk 0:00:51]} 32... Kxd7 {[%clk 0:00:55.5]} 33. exd6 {[%clk 0:00:43.9]} 33...
Bf6 {[%clk 0:00:38.6]} 34. dxe7 {[%clk 0:00:37.2]} 34... Bxe7 {[%clk 0:00:20.3]}
35. Qe6+ {[%clk 0:00:28.9]} 35... Kd8 {[%clk 0:00:16.2]} 36. d6 {[%clk
0:00:19.5]} 36... Bxh4 {[%clk 0:00:14.7]} 37. Bxc5 {[%clk 0:00:18.2]} 37... Re8
{[%clk 0:00:13.1]} 38. Bb6# {[%clk 0:00:17.4]} 1-0

[Event "Live Chess"]
[Site "Chess.com"]
[Date "2024.06.02"]
[Round "-"]
[White "LL220284LL"]
[Black "Dhaydon19"]
[Result "0-1"]
[WhiteElo "2496"]
[BlackElo "2633"]
[TimeControl "300"]
[EndTime "1:22:47 PDT"]
[Termination "Dhaydon19 won by resignation"]

1. b3 {[%clk 0:04:54.2]} 1... e6 {[%clk 0:04:59.9]} 2. Bb2 {[%clk 0:04:53.3]}
2... d5 {[%clk 0:04:59.5]} 3. Nf3 {[%clk 0:04:52.2]} 3... Nf6 {[%clk 0:04:58.9]}
4. e3 {[%clk 0:04:51.6]} 4... Bd6 {[%clk 0:04:58.5]} 5. Be2 {[%clk 0:04:50.9]}
5... Qe7 {[%clk 0:04:58.2]} 6. O-O {[%clk 0:04:50.1]} 6... Nbd7 {[%clk
0:04:57.8]} 7. c4 {[%clk 0:04:49.4]} 7... O-O {[%clk 0:04:54.5]} 8. Nc3 {[%clk
0:04:47.4]} 8... c6 {[%clk 0:04:53.1]} 9. d4 {[%clk 0:04:45.7]} 9... dxc4 {[%clk
0:04:52.2]} 10. Bxc4 {[%clk 0:04:44.6]} 10... e5 {[%clk 0:04:51.7]} 11. dxe5
{[%clk 0:04:41.2]} 11... Nxe5 {[%clk 0:04:51.6]} 12. Be2 {[%clk 0:04:38.7]}
12... Rd8 {[%clk 0:04:49.3]} 13. Qc2 {[%clk 0:04:36]} 13... Neg4 {[%clk
0:04:45.2]} 14. Rae1 {[%clk 0:04:17.8]} 14... Bc7 {[%clk 0:04:34.4]} 15. h3
{[%clk 0:04:10.7]} 15... Ne5 {[%clk 0:04:32.1]} 16. Ne4 {[%clk 0:03:58.1]} 16...
Nxf3+ {[%clk 0:04:26]} 17. Bxf3 {[%clk 0:03:56.5]} 17... Be5 {[%clk 0:04:23.3]}
18. Bxe5 {[%clk 0:03:51.4]} 18... Qxe5 {[%clk 0:04:23.2]} 19. Nxf6+ {[%clk
0:03:46.9]} 19... Qxf6 {[%clk 0:04:21.8]} 20. Qe4 {[%clk 0:03:37.8]} 20... Be6
{[%clk 0:04:18.5]} 21. Qb4 {[%clk 0:03:31.9]} 21... Rd7 {[%clk 0:04:15.7]} 22.
Rd1 {[%clk 0:03:30.6]} 22... Rad8 {[%clk 0:04:14.4]} 23. Rxd7 {[%clk 0:03:28.9]}
23... Rxd7 {[%clk 0:04:14.3]} 24. Qc5 {[%clk 0:03:08.7]} 24... a6 {[%clk
0:04:10.5]} 25. Rd1 {[%clk 0:03:05.1]} 25... Qd8 {[%clk 0:03:57.2]} 26. Rxd7
{[%clk 0:03:01.8]} 26... Qxd7 {[%clk 0:03:57.1]} 27. Qe5 {[%clk 0:02:58]} 27...
g6 {[%clk 0:03:50.6]} 28. Kh2 {[%clk 0:02:55.3]} 28... Bf5 {[%clk 0:03:44.7]}
29. Qb8+ {[%clk 0:02:50.7]} 29... Kg7 {[%clk 0:03:43.4]} 30. g4 {[%clk
0:02:44.6]} 30... Bb1 {[%clk 0:03:34]} 31. Qe5+ {[%clk 0:02:37.1]} 31... f6
{[%clk 0:03:32.7]} 32. Qb2 {[%clk 0:02:33]} 32... Qd6+ {[%clk 0:03:26.3]} 33.
Kg2 {[%clk 0:02:28.3]} 33... Bd3 {[%clk 0:03:24.6]} 34. Qc3 {[%clk 0:02:21.7]}
34... Bb1 {[%clk 0:03:20.1]} 35. Qb2 {[%clk 0:02:19.3]} 35... Bd3 {[%clk
0:03:18.8]} 36. Qc2 {[%clk 0:02:17.5]} 36... Bxc2 {[%clk 0:03:17.4]} 0-1

[Event "Live Chess"]
[Site "Chess.com"]
[Date "2024.06.02"]
[Round "-"]
[White "resipsa6"]
[Black "GoldsmanB"]
[Result "1-0"]
[WhiteElo "2028"]
[BlackElo "1102"]
[TimeControl "300"]
[EndTime "1:22:55 PDT"]
[Termination "resipsa6 won by resignation"]

1. e4 {[%clk 0:04:58]} 1... e6 {[%clk 0:04:56.7]} 2. Nf3 {[%clk 0:04:56.4]} 2...
d5 {[%clk 0:04:55]} 3. exd5 {[%clk 0:04:55.7]} 3... exd5 {[%clk 0:04:53.6]} 4.
d4 {[%clk 0:04:35.6]} 4... Nf6 {[%clk 0:04:50.8]} 5. Bd3 {[%clk 0:04:34.7]} 5...
Nc6 {[%clk 0:04:37.8]} 6. O-O {[%clk 0:04:30.7]} 6... Bd6 {[%clk 0:04:36.2]} 7.
c3 {[%clk 0:04:29.8]} 7... Be6 {[%clk 0:04:34.9]} 8. Bg5 {[%clk 0:04:28.3]} 8...
Be7 {[%clk 0:04:32.3]} 9. Re1 {[%clk 0:04:26.6]} 9... Nd7 {[%clk 0:04:30.5]} 10.
Bxe7 {[%clk 0:04:25]} 10... Qxe7 {[%clk 0:04:29]} 11. Nbd2 {[%clk 0:04:24.9]}
11... Qd6 {[%clk 0:04:15.4]} 12. Nf1 {[%clk 0:04:23]} 12... O-O-O {[%clk
0:04:13.2]} 13. Ng3 {[%clk 0:04:21.7]} 13... Bg4 {[%clk 0:04:09.6]} 14. Be2
{[%clk 0:04:15.6]} 14... Rde8 {[%clk 0:04:06.7]} 15. Qd2 {[%clk 0:04:13.5]}
15... Nf6 {[%clk 0:04:03.7]} 16. h3 {[%clk 0:04:06]} 16... Bxf3 {[%clk
0:04:01.6]} 17. Bxf3 {[%clk 0:04:05.1]} 17... Re7 {[%clk 0:03:55.7]} 18. Rxe7
{[%clk 0:04:03.3]} 18... Qxe7 {[%clk 0:03:52.5]} 19. Re1 {[%clk 0:04:02.7]}
19... Qd6 {[%clk 0:03:48.7]} 20. Nf5 {[%clk 0:03:59.8]} 20... Qf8 {[%clk
0:03:39.1]} 21. Qf4 {[%clk 0:03:54.6]} 21... g6 {[%clk 0:03:36.5]} 22. Ne3
{[%clk 0:03:48.4]} 22... Qd6 {[%clk 0:03:31.5]} 23. Qxd6 {[%clk 0:03:46]} 23...
cxd6 {[%clk 0:03:31.4]} 24. Nxd5 {[%clk 0:03:45.2]} 24... Nxd5 {[%clk
0:03:29.7]} 25. Bxd5 {[%clk 0:03:45.1]} 25... Kd7 {[%clk 0:03:25.3]} 26. Bxf7
{[%clk 0:03:42.4]} 26... Rf8 {[%clk 0:03:22.5]} 27. Bb3 {[%clk 0:03:40.6]} 27...
Ne7 {[%clk 0:03:19.8]} 28. Be6+ {[%clk 0:03:37.3]} 28... Kc7 {[%clk 0:03:15.7]}
29. Bg4 {[%clk 0:03:36]} 29... Nd5 {[%clk 0:03:13.7]} 30. Bf3 {[%clk 0:03:35]}
30... Nf4 {[%clk 0:03:10.8]} 31. Re7+ {[%clk 0:03:33.5]} 31... Kd8 {[%clk
0:03:07.4]} 32. Rxb7 {[%clk 0:03:32.5]} 32... Re8 {[%clk 0:03:02.1]} 33. Rb8+
{[%clk 0:03:28.2]} 33... Ke7 {[%clk 0:03:00.9]} 34. Rxe8+ {[%clk 0:03:28.1]}
34... Kxe8 {[%clk 0:03:00.6]} 35. Kf1 {[%clk 0:03:23.5]} 35... Nd3 {[%clk
0:02:57.2]} 36. b3 {[%clk 0:03:21.5]} 36... Nc1 {[%clk 0:02:54.8]} 37. Ke1
{[%clk 0:03:10.3]} 37... Nxa2 {[%clk 0:02:53.3]} 38. Kd2 {[%clk 0:03:09.6]}
38... Kd7 {[%clk 0:02:50.9]} 39. Kc2 {[%clk 0:03:08.8]} 1-0

[Event "Live Chess"]
[Site "Chess.com"]
[Date "2024.06.02"]
[Round "-"]
[White "matt1979"]
[Black "Ofirgh1234567890"]
[Result "1-0"]
[WhiteElo "1410"]
[BlackElo "1752"]
[TimeControl "300"]
[EndTime "1:23:24 PDT"]
[Termination "matt1979 won by checkmate"]

1. f4 {[%clk 0:04:58.4]} 1... e5 {[%clk 0:04:57.6]} 2. fxe5 {[%clk 0:04:57]}
2... d6 {[%clk 0:04:56.8]} 3. Nf3 {[%clk 0:04:55.8]} 3... Nc6 {[%clk 0:04:54.6]}
4. e4 {[%clk 0:04:52.7]} 4... dxe5 {[%clk 0:04:52.7]} 5. Bb5 {[%clk 0:04:51.2]}
5... Bd6 {[%clk 0:04:48.2]} 6. O-O {[%clk 0:04:48.4]} 6... Nf6 {[%clk
0:04:45.5]} 7. d3 {[%clk 0:04:40.8]} 7... O-O {[%clk 0:04:41]} 8. Bg5 {[%clk
0:04:38.6]} 8... Bg4 {[%clk 0:04:35]} 9. Bxc6 {[%clk 0:04:33.9]} 9... bxc6
{[%clk 0:04:33.8]} 10. Qe1 {[%clk 0:04:30.2]} 10... h6 {[%clk 0:04:20]} 11. Bh4
{[%clk 0:04:09.9]} 11... Qb8 {[%clk 0:04:06.9]} 12. Bxf6 {[%clk 0:04:05.1]}
12... gxf6 {[%clk 0:04:06.8]} 13. Qc1 {[%clk 0:03:59.1]} 13... Qb6+ {[%clk
0:03:55]} 14. Kh1 {[%clk 0:03:54.4]} 14... Kg7 {[%clk 0:03:53.7]} 15. Nc3 {[%clk
0:03:47.5]} 15... Rab8 {[%clk 0:03:50.4]} 16. Rb1 {[%clk 0:03:32.9]} 16... Bb4
{[%clk 0:03:48.3]} 17. Ne2 {[%clk 0:03:26.6]} 17... c5 {[%clk 0:03:36.8]} 18.
Ng3 {[%clk 0:03:21.7]} 18... c4 {[%clk 0:03:33.1]} 19. h3 {[%clk 0:03:12.4]}
19... Be6 {[%clk 0:03:31]} 20. Nh4 {[%clk 0:03:04.1]} 20... Rh8 {[%clk
0:03:25.9]} 21. Nhf5+ {[%clk 0:03:01.4]} 21... Bxf5 {[%clk 0:03:24.9]} 22. Nxf5+
{[%clk 0:03:00]} 22... Kf8 {[%clk 0:03:12.4]} 23. Nxh6 {[%clk 0:02:53.1]} 23...
Bc5 {[%clk 0:03:05.6]} 24. Nf5 {[%clk 0:02:48.7]} 24... cxd3 {[%clk 0:03:01.6]}
25. cxd3 {[%clk 0:02:45.3]} 25... Rd8 {[%clk 0:02:50.4]} 26. Qc2 {[%clk
0:02:35.6]} 26... Qb5 {[%clk 0:02:44.1]} 27. a3 {[%clk 0:02:30.1]} 27... Rxd3
{[%clk 0:02:37.5]} 28. b4 {[%clk 0:02:21]} 28... Bb6 {[%clk 0:02:35.9]} 29. a4
{[%clk 0:02:11.6]} 29... Qd7 {[%clk 0:02:22.1]} 30. Rbd1 {[%clk 0:01:52.7]}
30... Rxd1 {[%clk 0:02:15]} 31. Rxd1 {[%clk 0:01:51.5]} 31... Qc8 {[%clk
0:02:10.6]} 32. Qd3 {[%clk 0:01:46.5]} 32... Ke8 {[%clk 0:02:06.2]} 33. Qb5+
{[%clk 0:01:38.6]} 33... Kf8 {[%clk 0:02:02.7]} 34. a5 {[%clk 0:01:34.7]} 34...
Bf2 {[%clk 0:02:00.6]} 35. Qd7 {[%clk 0:01:28.2]} 35... Qxd7 {[%clk 0:01:58.9]}
36. Rxd7 {[%clk 0:01:26.8]} 36... Kg8 {[%clk 0:01:38.9]} 37. Rxc7 {[%clk
0:01:22.5]} 37... Be1 {[%clk 0:01:37.5]} 38. Rxa7 {[%clk 0:01:14.7]} 38... Bxb4
{[%clk 0:01:36.2]} 39. Ra8+ {[%clk 0:01:08.6]} 39... Kh7 {[%clk 0:01:34.4]} 40.
Rxh8+ {[%clk 0:01:06.9]} 40... Kxh8 {[%clk 0:01:34.3]} 41. a6 {[%clk 0:01:05.9]}
41... Bc5 {[%clk 0:01:33.6]} 42. g4 {[%clk 0:00:58.9]} 42... Kh7 {[%clk
0:01:31.6]} 43. Kg2 {[%clk 0:00:55.8]} 43... Kg6 {[%clk 0:01:30.3]} 44. Kf3
{[%clk 0:00:54.1]} 44... Ba7 {[%clk 0:01:26.1]} 45. h4 {[%clk 0:00:47.7]} 45...
Bc5 {[%clk 0:01:25.5]} 46. Ke2 {[%clk 0:00:43.4]} 46... Kh7 {[%clk 0:01:21.2]}
47. Kd3 {[%clk 0:00:41.9]} 47... Kg6 {[%clk 0:01:20.5]} 48. Kc4 {[%clk
0:00:40.8]} 48... Ba7 {[%clk 0:01:18.9]} 49. Kb5 {[%clk 0:00:40]} 49... Kh7
{[%clk 0:01:12.1]} 50. Kc6 {[%clk 0:00:38.9]} 50... Kg8 {[%clk 0:01:11.3]} 51.
Kb7 {[%clk 0:00:37.7]} 51... Kf8 {[%clk 0:01:05.1]} 52. Kxa7 {[%clk 0:00:35.7]}
52... Ke8 {[%clk 0:01:04.5]} 53. Kb7 {[%clk 0:00:35.2]} 53... Kd7 {[%clk
0:01:03.6]} 54. a7 {[%clk 0:00:34.3]} 54... Ke6 {[%clk 0:00:58.8]} 55. a8=Q
{[%clk 0:00:34.2]} 55... Kd7 {[%clk 0:00:57.8]} 56. Qc8# {[%clk 0:00:32.8]} 1-0

[Event "Live Chess"]
[Site "Chess.com"]
[Date "2024.06.02"]
[Round "-"]
[White "RockTroll"]
[Black "MagnersCarlsberg2870"]
[Result "1-0"]
[WhiteElo "2187"]
[BlackElo "1820"]
[TimeControl "300"]
[EndTime "1:23:31 PDT"]
[Termination "RockTroll won by resignation"]

1. Nf3 {[%clk 0:04:58.1]} 1... Nc6 {[%clk 0:04:58]} 2. g3 {[%clk 0:04:57.7]}
2... d5 {[%clk 0:04:52.9]} 3. Bg2 {[%clk 0:04:55.5]} 3... Bg4 {[%clk 0:04:51.7]}
4. O-O {[%clk 0:04:53.1]} 4... Qd7 {[%clk 0:04:50.6]} 5. d4 {[%clk 0:04:51.9]}
5... h5 {[%clk 0:04:49]} 6. c4 {[%clk 0:04:51]} 6... h4 {[%clk 0:04:46.9]} 7.
cxd5 {[%clk 0:04:48.2]} 7... Nd8 {[%clk 0:04:40.5]} 8. Nc3 {[%clk 0:04:46]} 8...
hxg3 {[%clk 0:04:38.5]} 9. fxg3 {[%clk 0:04:38.7]} 9... Bh3 {[%clk 0:04:36.9]}
10. Ne5 {[%clk 0:04:37.2]} 10... Qg4 {[%clk 0:04:21]} 11. Nxg4 {[%clk
0:04:35.1]} 11... Bxg4 {[%clk 0:04:20]} 12. Qb3 {[%clk 0:04:31.3]} 1-0

[Event "Live Chess"]
[Site "Chess.com"]
[Date "2024.06.02"]
[Round "-"]
[White "TheSmoulderingMaster"]
[Black "defenderalist"]
[Result "1-0"]
[WhiteElo "1739"]
[BlackElo "1532"]
[TimeControl "300"]
[EndTime "1:23:43 PDT"]
[Termination "TheSmoulderingMaster won by resignation"]

1. e4 {[%clk 0:04:56.6]} 1... c5 {[%clk 0:04:52.3]} 2. Nf3 {[%clk 0:04:54.4]}
2... d6 {[%clk 0:04:41.3]} 3. d4 {[%clk 0:04:53.4]} 3... cxd4 {[%clk 0:04:22.8]}
4. Nxd4 {[%clk 0:04:52.6]} 4... Nf6 {[%clk 0:04:19.6]} 5. Nc3 {[%clk 0:04:51.8]}
5... a6 {[%clk 0:04:19.1]} 6. Be3 {[%clk 0:04:49.3]} 6... Nc6 {[%clk 0:04:17.5]}
7. f3 {[%clk 0:04:47.8]} 7... e6 {[%clk 0:04:16.7]} 8. Qd2 {[%clk 0:04:46.9]}
8... Nxd4 {[%clk 0:04:13.3]} 9. Bxd4 {[%clk 0:04:45.6]} 9... Be7 {[%clk
0:04:12.4]} 10. O-O-O {[%clk 0:04:43.8]} 10... b5 {[%clk 0:04:09]} 11. g4 {[%clk
0:04:41.9]} 11... b4 {[%clk 0:04:06.4]} 12. Ne2 {[%clk 0:04:40.2]} 12... a5
{[%clk 0:04:02.9]} 13. h4 {[%clk 0:04:38]} 13... e5 {[%clk 0:04:01.5]} 14. Be3
{[%clk 0:04:36.2]} 14... Ba6 {[%clk 0:03:52.7]} 15. h5 {[%clk 0:04:30.6]} 15...
Nd7 {[%clk 0:03:47.7]} 16. g5 {[%clk 0:04:27.7]} 16... Bxe2 {[%clk 0:03:39.4]}
17. Bxe2 {[%clk 0:04:26.2]} 17... Qc7 {[%clk 0:03:32.6]} 18. g6 {[%clk
0:04:22.6]} 18... hxg6 {[%clk 0:03:27.8]} 19. hxg6 {[%clk 0:04:19.9]} 19...
O-O-O {[%clk 0:02:52.9]} 20. gxf7 {[%clk 0:04:12.8]} 20... Rxh1 {[%clk
0:02:39.5]} 21. Rxh1 {[%clk 0:04:09.9]} 21... Rf8 {[%clk 0:02:37.7]} 22. Qd5
{[%clk 0:04:07.1]} 22... Nf6 {[%clk 0:02:34]} 23. Ba6+ {[%clk 0:04:04.5]} 23...
Kb8 {[%clk 0:02:31.6]} 24. Qb5+ {[%clk 0:04:01.4]} 24... Ka8 {[%clk 0:02:27.5]}
25. Bb6 {[%clk 0:03:58.7]} 25... Qd7 {[%clk 0:02:15]} 26. Qxa5 {[%clk
0:03:55.3]} 1-0

[Event "Live Chess"]
[Site "Chess.com"]
[Date "2024.06.02"]
[Round "-"]
[White "Crowded_House"]
[Black "EdenHazard8"]
[Result "0-1"]
[WhiteElo "1666"]
[BlackElo "2190"]
[TimeControl "300"]
[EndTime "1:23:45 PDT"]
[Termination "EdenHazard8 won by checkmate"]

1. d4 {[%clk 0:04:58.4]} 1... Nf6 {[%clk 0:04:58.1]} 2. Bg5 {[%clk 0:04:57.1]}
2... d5 {[%clk 0:04:56.9]} 3. Nd2 {[%clk 0:04:53.7]} 3... c6 {[%clk 0:04:53.5]}
4. c3 {[%clk 0:04:51.5]} 4... Bf5 {[%clk 0:04:51.7]} 5. Ngf3 {[%clk 0:04:49.9]}
5... h6 {[%clk 0:04:50.1]} 6. Bh4 {[%clk 0:04:48.5]} 6... Nbd7 {[%clk
0:04:47.2]} 7. e3 {[%clk 0:04:47.1]} 7... e6 {[%clk 0:04:45.6]} 8. Nb3 {[%clk
0:04:46]} 8... Bd6 {[%clk 0:04:43.9]} 9. Bd3 {[%clk 0:04:44.3]} 9... Bxd3 {[%clk
0:04:40.6]} 10. Qxd3 {[%clk 0:04:42.6]} 10... Qe7 {[%clk 0:04:37.3]} 11. O-O-O
{[%clk 0:04:30.2]} 11... a5 {[%clk 0:04:27.4]} 12. Bg3 {[%clk 0:04:23.7]} 12...
a4 {[%clk 0:04:24.9]} 13. Bxd6 {[%clk 0:04:19.9]} 13... Qxd6 {[%clk 0:04:23]}
14. Nbd2 {[%clk 0:04:15.2]} 14... a3 {[%clk 0:04:21.5]} 15. b3 {[%clk
0:04:13.7]} 15... O-O {[%clk 0:04:09.9]} 16. c4 {[%clk 0:04:12.9]} 16... c5
{[%clk 0:04:06]} 17. dxc5 {[%clk 0:04:03.1]} 17... Nxc5 {[%clk 0:04:05.9]} 18.
Qd4 {[%clk 0:03:53.6]} 18... Nce4 {[%clk 0:04:02.2]} 19. Nxe4 {[%clk 0:03:51.4]}
19... Nxe4 {[%clk 0:04:02.1]} 20. Kb1 {[%clk 0:03:27.4]} 20... Nxf2 {[%clk
0:03:50.3]} 21. cxd5 {[%clk 0:03:25.3]} 21... Nxh1 {[%clk 0:03:47.9]} 22. Rxh1
{[%clk 0:03:23.1]} 22... Qxd5 {[%clk 0:03:46.7]} 23. Qxd5 {[%clk 0:03:22]} 23...
exd5 {[%clk 0:03:46.6]} 24. Rd1 {[%clk 0:03:21.2]} 24... Rfe8 {[%clk 0:03:44.3]}
25. Rxd5 {[%clk 0:03:15]} 25... Rxe3 {[%clk 0:03:39.9]} 26. Rd2 {[%clk
0:03:13.5]} 26... Rc8 {[%clk 0:03:37.1]} 27. Nh4 {[%clk 0:03:05]} 27... Rec3
{[%clk 0:03:29.9]} 28. Rd1 {[%clk 0:02:54.5]} 28... Rc2 {[%clk 0:03:28.4]} 29.
h3 {[%clk 0:02:48.9]} 29... Rb2+ {[%clk 0:03:26.9]} 30. Ka1 {[%clk 0:02:46]}
30... Rcc2 {[%clk 0:03:26.1]} 31. Rd8+ {[%clk 0:02:39.3]} 31... Kh7 {[%clk
0:03:20.8]} 32. Rd1 {[%clk 0:02:33.2]} 32... Rxa2+ {[%clk 0:03:19]} 33. Kb1
{[%clk 0:02:32.4]} 33... Rcb2+ {[%clk 0:03:18.9]} 34. Kc1 {[%clk 0:02:31.4]}
34... Ra1# {[%clk 0:03:18.8]} 0-1

[Event "Live Chess"]
[Site "Chess.com"]
[Date "2024.06.02"]
[Round "-"]
[White "gunslinger222"]
[Black "peteopeteo"]
[Result "1-0"]
[WhiteElo "2264"]
[BlackElo "1542"]
[TimeControl "300"]
[EndTime "1:23:49 PDT"]
[Termination "gunslinger222 won by resignation"]

1. d4 {[%clk 0:04:57.2]} 1... d5 {[%clk 0:04:59]} 2. c4 {[%clk 0:04:56.3]} 2...
c6 {[%clk 0:04:55.5]} 3. Nc3 {[%clk 0:04:54.4]} 3... Nf6 {[%clk 0:04:54.8]} 4.
cxd5 {[%clk 0:04:53.4]} 4... cxd5 {[%clk 0:04:54.7]} 5. Bf4 {[%clk 0:04:52.7]}
5... Bf5 {[%clk 0:04:53.1]} 6. Qb3 {[%clk 0:04:44.7]} 6... b6 {[%clk 0:04:45.2]}
7. Nf3 {[%clk 0:04:36.6]} 7... e6 {[%clk 0:04:44.7]} 8. e3 {[%clk 0:04:27.2]}
8... Bd6 {[%clk 0:04:43.9]} 9. Bb5+ {[%clk 0:04:26.1]} 9... Ke7 {[%clk
0:04:37.5]} 10. Ne5 {[%clk 0:04:19.7]} 10... Nfd7 {[%clk 0:03:55.7]} 11. Bxd7
{[%clk 0:03:56.6]} 11... Nxd7 {[%clk 0:03:52]} 12. Nc6+ {[%clk 0:03:54.9]} 1-0